bitfinex-derivatives/quotes_SOLF0:USTF0_20250501
["timestamp","ask_amount","ask_price","bid_price","bid_amount"]
[1746100261366,2.0977,152.14,152.06,23.42]
[1746100261569,6.5746,152.08,152.06,23.42]
[1746100261772,27.4846,152.13,152.06,23.42]
[1746100263069,27.4846,152.13,152.05,6.5755]
[1746100263770,6.5748,152.08,152.05,6.5755]
[1746100265170,6.575,152.07,152.05,6.5755]
[1746100266070,6.575,152.07,152.04,29.9761]
[1746100271776,6.5747,152.08,152.05,6.5757]
[1746100275167,27.4846,152.13,152.04,29.976]
[1746100275372,27.4846,152.13,152.04,23.4]
[1746100275572,6.5764,152.04,152.02,23.4]
[1746100277279,6.5764,152.04,152.02,29.977]
[1746100279079,6.5764,152.04,152.02,23.4]
[1746100280176,6.576,152.05,152.02,23.4]
[1746100280376,6.576,152.05,152.02,29.9767]
[1746100280583,6.576,152.05,152.02,23.4]
[1746100281080,6.5751,152.07,152.04,6.5762]
[1746100281279,6.5751,152.07,152.02,23.4]
[1746100282282,6.5751,152.07,152.04,6.576]
[1746100286883,6.5747,152.08,152.05,6.5755]
[1746100287186,25.5007,152.12,152.02,23.4]
[1746100287486,6.5749,152.07,152.02,23.4]
[1746100288589,6.5749,152.07,152.04,6.576]
[1746100289791,6.5749,152.07,152.05,6.5757]
[1746100290092,25.5007,152.12,152.02,23.4]
[1746100290286,25.5007,152.12,152.05,6.5757]
[1746100290986,6.5742,152.09,152.06,6.5752]
[1746100292491,6.5742,152.09,152.06,29.9752]
[1746100292893,6.5742,152.09,152.06,23.4]
[1746100293088,25.5007,152.12,152.06,23.4]
[1746100293293,33.29072015,152.12,152.03,23.4]
[1746100293491,33.29072015,152.12,152.03,29.9766]
[1746100294283,33.29072015,152.12,152.03,23.4]
[1746100294487,1.20828211,152.11,152.03,23.4]
[1746100294693,6.5762,152.04,152.03,23.4]
[1746100294891,7.79002015,152.09,152.0,29.9776]
[1746100295198,6.5765,152.04,152.0,23.4]
[1746100295389,6.5765,152.04,152.01,6.5773]
[1746100295591,2.0227,152.08,152.01,6.5773]
[1746100295994,6.5769,152.03,152.0,29.9778]
[1746100296196,2.0227,152.08,152.0,23.4]
[1746100296197,25.4227,152.08,152.0,23.4]
[1746100296895,6.5774,152.02,152.0,23.4]
[1746100297492,6.5775,152.01,152.0,23.4]
[1746100299888,6.5775,152.01,151.98,6.5785]
[1746100300487,6.5775,152.01,151.97,23.4]
[1746100300999,9.81832015,152.07,151.97,23.4]
[1746100301191,1.2086871,152.06,151.97,23.4]
[1746100301392,9.81832015,152.07,151.97,23.4]
[1746100301592,6.5772,152.02,151.99,6.5781]
[1746100301996,6.5766,152.04,151.97,23.4]
[1746100302198,6.5766,152.04,151.98,7.79002015]
[1746100302801,6.5766,152.04,152.01,6.5772]
[1746100303601,6.5766,152.04,152.0,6.5778]
[1746100303898,6.5766,152.04,151.98,7.79002015]
[1746100304301,2.0283,152.07,152.0,6.5776]
[1746100304698,2.0283,152.07,151.98,7.79002015]
[1746100305405,7.79002015,152.01,151.94,23.4]
[1746100305605,6.0186,152.0,151.91,23.4]
[1746100305805,6.5803,151.95,151.91,29.9814]
[1746100306006,6.0186,152.0,151.91,23.4]
[1746100306205,6.5806,151.94,151.91,23.4]
[1746100306411,6.0186,152.0,151.91,23.4]
[1746100306809,6.5801,151.95,151.91,29.9817]
[1746100307008,6.0186,152.0,151.91,29.9817]
[1746100307507,6.5801,151.95,151.91,29.9817]
[1746100307907,6.5801,151.95,151.92,6.5813]
[1746100310208,6.5801,151.95,151.93,6.5808]
[1746100311111,6.5801,151.95,151.92,6.5812]
[1746100311613,6.5806,151.94,151.91,29.9818]
[1746100313016,6.0186,152.0,151.91,23.4]
[1746100314319,7.79002015,151.98,151.91,23.4]
[1746100314514,23.4,151.97,151.91,23.4]
[1746100314713,6.5814,151.92,151.89,6.5824]
[1746100314913,6.5814,151.92,151.88,23.4]
[1746100316219,6.5811,151.93,151.9,6.5822]
[1746100316417,23.4,151.97,151.9,6.5822]
[1746100316919,6.5814,151.92,151.9,6.5822]
[1746100317515,6.5812,151.93,151.9,6.5822]
[1746100318514,23.4,151.97,151.88,23.4]
[1746100318818,23.4,151.97,151.89,6.5824]
[1746100319919,6.5817,151.92,151.89,6.5824]
[1746100320419,6.5819,151.91,151.89,6.5824]
[1746100321222,6.5815,151.92,151.89,6.5824]
[1746100321623,23.4,151.97,151.89,6.5824]
[1746100321922,6.5813,151.93,151.9,6.5819]
[1746100322127,23.4,151.97,151.9,6.5819]
[1746100322622,23.4,151.97,151.88,23.4]
[1746100323324,6.5805,151.94,151.92,6.5814]
[1746100324124,6.5803,151.95,151.93,6.5809]
[1746100324326,23.4,151.97,151.88,23.4]
[1746100324626,6.5801,151.95,151.92,6.5811]
[1746100324818,23.4,151.97,151.89,7.79002015]
[1746100325125,29.7786,152.0,151.95,6.5798]
[1746100325325,29.7786,152.0,151.92,23.76]
[1746100325515,23.76,152.0,151.92,23.76]
[1746100326221,6.5799,151.96,151.93,6.5808]
[1746100327820,6.5794,151.97,151.93,6.5808]
[1746100328929,23.76,152.0,151.92,31.55002015]
[1746100328930,6.5785,151.99,151.92,31.55002015]
[1746100329420,30.3381,152.0,151.97,6.5789]
[1746100329625,6.5781,152.0,151.97,6.5789]
[1746100331628,6.0361,152.03,151.96,23.76]
[1746100332020,6.5773,152.02,151.96,23.76]
[1746100332826,6.5773,152.02,151.99,6.5783]
[1746100333028,6.5775,152.01,151.96,23.76]
[1746100333325,6.0361,152.03,151.96,23.76]
[1746100333527,6.5786,151.99,151.96,23.76]
[1746100333825,7.79002015,152.02,151.94,6.5803]
[1746100334225,6.5792,151.97,151.94,6.5803]
[1746100334829,6.5792,151.97,151.95,6.5801]
[1746100335329,6.5792,151.97,151.94,6.5803]
[1746100340141,6.5787,151.99,151.93,23.76]
[1746100340340,6.0361,152.03,151.93,23.76]
[1746100340638,4.0196,152.03,151.95,7.79002015]
[1746100341031,4.0196,152.03,151.96,2.0514]
[1746100341234,6.5773,152.02,151.99,6.5783]
[1746100343042,8.625,152.03,151.97,23.76]
[1746100343436,2.0483,152.03,151.97,23.76]
[1746100343632,6.5777,152.01,151.97,30.339]
[1746100343936,6.5777,152.01,151.97,23.76]
[1746100344644,6.5777,152.01,151.98,6.5785]
[1746100351849,6.5779,152.0,151.98,6.5785]
[1746100352747,6.5776,152.01,151.98,6.5785]
[1746100354551,2.0483,152.03,151.97,23.76]
[1746100355155,2.0483,152.03,151.97,30.3392]
[1746100355648,6.5783,152.0,151.97,30.3392]
[1746100356754,6.5783,152.0,151.98,6.5787]
[1746100358054,6.5777,152.01,151.98,6.5787]
[1746100358250,6.5777,152.01,151.99,6.5781]
[1746100358554,6.5775,152.01,151.99,6.5781]
[1746100359047,23.76,152.04,151.99,6.5781]
[1746100359654,6.5775,152.01,151.99,6.5781]
[1746100359955,23.76,152.04,151.99,6.5781]
[1746100360154,6.5775,152.01,151.99,6.5781]
[1746100360843,23.76,152.04,151.99,6.5781]
[1746100361053,29.9631,152.07,151.97,23.76]
[1746100361544,6.5776,152.01,151.97,23.76]
[1746100361751,6.5776,152.01,151.98,6.5787]
[1746100362150,6.5782,152.0,151.97,23.76]
[1746100362351,29.9631,152.07,151.97,23.76]
[1746100362658,6.5773,152.02,151.97,23.76]
[1746100362954,29.9631,152.07,151.97,23.76]
[1746100363358,6.5767,152.03,151.97,23.76]
[1746100363752,6.5767,152.03,152.01,6.5774]
[1746100364363,6.5764,152.04,152.01,6.5774]
[1746100364652,6.5764,152.04,152.02,6.577]
[1746100364857,6.5764,152.04,151.97,23.76]
[1746100365659,6.5767,152.03,151.97,23.76]
[1746100366158,6.5767,152.03,152.0,6.5777]
[1746100367259,6.5767,152.03,152.01,6.5774]
[1746100367861,6.5768,152.03,152.01,6.5774]
[1746100372064,6.5768,152.03,152.0,6.5777]
[1746100372361,29.9631,152.07,151.97,23.76]
[1746100372763,29.9631,152.07,151.98,6.5786]
[1746100372961,7.79002015,152.03,151.89,13.1651]
[1746100373161,7.79002015,152.03,151.95,6.5798]
[1746100373357,31.73002015,152.03,151.95,6.5798]
[1746100373859,6.5789,151.98,151.96,6.5795]
[1746100374768,6.5789,151.98,151.93,23.94]
[1746100375067,6.5792,151.97,151.93,23.94]
[1746100375669,6.5797,151.96,151.93,23.94]
[1746100376070,4.1351,151.99,151.93,23.94]
[1746100376262,6.5795,151.97,151.94,6.5801]
[1746100376767,6.5801,151.95,151.93,23.94]
[1746100380466,6.5799,151.96,151.9,546.8286]
[1746100380869,1.9948,151.98,151.92,6.5812]
[1746100381067,6.5804,151.95,151.92,6.5812]
[1746100382773,6.5799,151.96,151.92,6.5812]
[1746100382974,6.5799,151.96,151.93,6.5808]
[1746100384577,6.5799,151.96,151.92,6.5812]
[1746100385269,6.5801,151.95,151.92,6.5812]
[1746100387173,6.5805,151.94,151.91,6.5816]
[1746100387567,6.5801,151.96,151.92,6.5811]
[1746100387769,1.9948,151.98,151.92,6.5811]
[1746100388178,6.5802,151.95,151.92,6.5811]
[1746100389679,6.5798,151.96,151.93,6.5809]
[1746100390474,6.5794,151.97,151.9,544.78]
[1746100390675,6.5794,151.97,151.91,7.79002015]
[1746100390877,27.8551,151.99,151.91,9.82132015]
[1746100391181,6.5799,151.96,151.93,6.5807]
[1746100392179,25.8021,152.02,151.91,9.82132015]
[1746100392385,25.8021,152.02,151.91,11.80632015]
[1746100392980,6.5788,151.98,151.95,6.5798]
[1746100395482,6.5792,151.97,151.95,6.5798]
[1746100395683,6.5792,151.97,151.94,30.3003]
[1746100398389,6.5801,151.95,151.94,23.72]
[1746100398689,6.5801,151.95,151.92,6.581]
[1746100398878,7.79002015,151.99,151.91,23.72]
[1746100398879,23.72,151.98,151.91,23.72]
[1746100399189,27.7069,151.98,151.91,23.72]
[1746100399381,6.5814,151.92,151.91,23.72]
[1746100400382,6.582,151.91,151.88,30.303]
[1746100401291,6.5823,151.9,151.88,23.72]
[1746100402185,6.582,151.91,151.88,23.72]
[1746100402488,6.5823,151.9,151.88,23.72]
[1746100405391,6.5827,151.89,151.88,23.72]
[1746100405693,7.79002015,151.93,151.85,23.72]
[1746100405991,7.79002015,151.93,151.83,23.72]
[1746100406192,4.0053,151.92,151.83,23.72]
[1746100406583,6.5843,151.86,151.83,30.3049]
[1746100406790,6.5843,151.86,151.83,23.72]
[1746100407187,6.5836,151.87,151.83,23.72]
[1746100407395,23.72,151.9,151.83,23.72]
[1746100407602,6.5838,151.87,151.84,6.5848]
[1746100408399,6.584,151.86,151.83,30.3051]
[1746100408897,23.72,151.9,151.83,23.72]
[1746100409105,6.5837,151.87,151.84,6.5848]
[1746100409604,6.5834,151.88,151.85,6.5843]
[1746100410504,23.72,151.9,151.85,6.5843]
[1746100410505,6.5836,151.87,151.85,6.5843]
[1746100413100,6.5833,151.88,151.85,6.5843]
[1746100413509,23.72,151.9,151.84,6.5847]
[1746100413909,6.5837,151.87,151.84,6.5847]
[1746100414407,6.5833,151.88,151.85,6.5844]
[1746100415506,6.5833,151.88,151.84,6.5847]
[1746100416207,6.5833,151.88,151.85,6.5844]
[1746100416805,6.5833,151.88,151.84,6.5846]
[1746100418017,6.5835,151.87,151.83,32.2547]
[1746100418316,6.5835,151.87,151.83,25.6696]
[1746100418717,6.5835,151.87,151.84,6.5845]
[1746100419322,6.5841,151.86,151.83,32.2548]
[1746100419512,23.72,151.9,151.83,25.6696]
[1746100420118,4.0053,151.92,151.83,25.6696]
[1746100420513,6.5829,151.89,151.86,6.5837]
[1746100422221,6.5832,151.88,151.85,6.5842]
[1746100422718,6.5829,151.89,151.83,27.74]
[1746100422922,6.5829,151.89,151.86,6.5837]
[1746100423126,4.0053,151.92,151.83,27.74]
[1746100423321,4.0053,151.92,151.83,25.6696]
[1746100423523,6.5834,151.88,151.85,6.5842]
[1746100424024,6.5839,151.87,151.84,6.5847]
[1746100425020,23.68,151.89,151.79,25.6368]
[1746100425724,6.5846,151.85,151.81,6.5858]
[1746100426621,6.5848,151.84,151.81,6.5858]
[1746100428224,6.5845,151.85,151.81,6.5858]
[1746100428820,6.5849,151.84,151.81,6.5858]
[1746100429126,25.636,151.89,151.81,6.5858]
[1746100429425,6.5847,151.85,151.81,6.5858]
[1746100429626,25.636,151.89,151.81,6.5858]
[1746100430128,6.5847,151.85,151.81,6.5858]
[1746100432728,6.5851,151.84,151.81,6.5858]
[1746100433528,6.5853,151.83,151.8,30.2664]
[1746100433722,25.636,151.89,151.8,30.2664]
[1746100434027,6.5851,151.84,151.8,30.2664]
[1746100434432,6.5851,151.84,151.81,6.5859]
[1746100436631,6.5851,151.84,151.8,23.68]
[1746100436632,6.5857,151.82,151.8,23.68]
[1746100436825,25.636,151.89,151.8,23.68]
[1746100437431,25.636,151.89,151.8,30.2663]
[1746100437631,25.636,151.89,151.8,23.68]
[1746100438233,6.5849,151.84,151.81,6.5858]
[1746100438531,25.636,151.89,151.8,23.68]
[1746100438931,6.5845,151.85,151.83,6.585]
[1746100440134,25.636,151.89,151.84,6.5848]
[1746100440329,25.636,151.89,151.8,23.68]
[1746100440535,25.636,151.89,151.81,7.79002015]
[1746100441037,6.5835,151.88,151.85,6.5842]
[1746100441336,23.68,151.89,151.81,7.79002015]
[1746100441822,6.5832,151.88,151.81,7.79002015]
[1746100442233,6.5832,151.88,151.85,6.5842]
[1746100444237,6.5832,151.88,151.86,6.5839]
[1746100444530,30.2628,151.89,151.86,6.5839]
[1746100444732,23.68,151.89,151.85,6.5842]
[1746100445438,6.5835,151.88,151.85,6.5842]
[1746100448041,6.5836,151.87,151.85,6.5842]
[1746100451142,6.5836,151.87,151.84,6.5846]
[1746100453043,6.5836,151.87,151.85,6.5844]
[1746100454343,6.5833,151.88,151.85,6.5844]
[1746100456345,23.68,151.89,151.8,23.7]
[1746100456846,6.5842,151.86,151.82,6.5855]
[1746100457946,6.5842,151.86,151.83,6.5851]
[1746100464549,6.5845,151.85,151.82,6.5855]
[1746100465746,6.5842,151.86,151.83,6.5852]
[1746100468251,6.5844,151.85,151.82,6.5855]
[1746100468450,23.68,151.89,151.8,23.62]
[1746100468750,6.5843,151.86,151.8,23.62]
[1746100469050,23.68,151.89,151.8,23.62]
[1746100469649,6.5847,151.85,151.8,23.62]
[1746100470649,6.5847,151.85,151.82,6.5855]
[1746100473553,6.5841,151.86,151.83,6.5853]
[1746100474149,6.5838,151.87,151.8,23.62]
[1746100474453,23.68,151.89,151.8,23.62]
[1746100475251,6.5843,151.86,151.83,6.5852]
[1746100475453,23.68,151.89,151.8,23.62]
[1746100476351,6.5844,151.86,151.82,6.5854]
[1746100477053,6.5845,151.85,151.82,6.5854]
[1746100478754,6.5849,151.84,151.82,6.5854]
[1746100479153,6.5849,151.84,151.81,11.58151153]
[1746100479657,6.5853,151.83,151.81,11.58151153]
[1746100479857,6.5853,151.83,151.81,4.99551153]
[1746100480259,6.586,151.82,151.8,23.62]
[1746100481562,4.21468687,151.81,151.8,23.62]
[1746100484267,4.21468687,151.81,151.8,30.2066]
[1746100487063,4.20997138,151.81,151.8,30.2066]
[1746100487369,6.5855,151.83,151.8,30.2066]
[1746100488870,10.79533138,151.82,151.8,30.2066]
[1746100489062,4.20963138,151.81,151.8,30.2066]
[1746100491869,4.20963138,151.81,151.8,23.62]
[1746100492267,4.20963138,151.81,151.79,11.58231153]
[1746100492466,4.20963138,151.8,151.79,11.58231153]
[1746100498273,4.20963138,151.8,151.78,6.5872]
[1746100498477,6.5862,151.81,151.79,4.99551153]
[1746100498774,4.20777261,151.8,151.79,4.99551153]
[1746100500677,4.20777261,151.8,151.79,11.58251153]
[1746100501780,6.5855,151.83,151.8,6.5865]
[1746100501978,4.21135741,151.82,151.8,6.5865]
[1746100502167,4.21135741,151.81,151.8,6.5865]
[1746100505279,4.21368263,151.81,151.8,6.5865]
[1746100509683,4.21368263,151.81,151.79,11.58231153]
[1746100509881,4.21368263,151.8,151.79,11.58231153]
[1746100511182,6.5856,151.83,151.79,11.58231153]
[1746100511384,4.21381324,151.82,151.79,11.58231153]
[1746100511575,4.21381324,151.81,151.79,11.58231153]
[1746100511775,4.21381324,151.8,151.79,11.58231153]
[1746100514488,6.5856,151.83,151.8,6.5865]
[1746100514787,4.21278723,151.82,151.8,6.5865]
[1746100515086,4.21278723,151.81,151.8,6.5865]
[1746100526804,6.5841,151.86,151.82,6.5855]
[1746100527006,4.21400769,151.85,151.82,6.5855]
[1746100527304,6.5841,151.86,151.82,6.5855]
[1746100527804,10.5933,151.87,151.81,28.49551153]
[1746100528399,10.5933,151.87,151.83,6.5851]
[1746100528600,10.5933,151.87,151.81,28.49551153]
[1746100529313,4.21155497,151.86,151.83,6.585]
[1746100529605,4.21155497,151.85,151.83,6.585]
[1746100529803,4.21155497,151.84,151.83,6.585]
[1746100530004,4.21056538,151.84,151.82,6.5855]
[1746100530195,4.21056538,151.83,151.82,6.5855]
[1746100530506,11.57971153,151.86,151.82,6.5855]
[1746100531306,4.21020498,151.85,151.82,6.5855]
[1746100531513,4.21020498,151.84,151.82,6.5855]
[1746100531699,4.21020498,151.83,151.82,6.5855]
[1746100536513,4.21020498,151.83,151.78,23.5]
[1746100536714,4.21020498,151.82,151.78,23.5]
[1746100537009,4.20774133,151.81,151.78,23.5]
[1746100537314,4.20774133,151.8,151.78,23.5]
[1746100537514,4.20774133,151.79,151.78,23.5]
[1746100537814,4.20774133,151.79,151.75,28.49551153]
[1746100538014,4.99551153,151.82,151.75,28.49551153]
[1746100538210,6.5865,151.81,151.76,6.5881]
[1746100538515,4.99551153,151.8,151.72,546.18654718]
[1746100538710,4.99551153,151.78,151.72,545.04]
[1746100538910,4.99551153,151.78,151.73,6.5893]
[1746100538911,11.58321153,151.78,151.73,6.5893]
[1746100539807,11.58321153,151.78,151.74,6.5891]
[1746100540006,4.20282146,151.77,151.74,6.5891]
[1746100540211,4.20282146,151.76,151.74,6.5891]
[1746100540412,4.20282146,151.75,151.74,6.5891]
[1746100542121,4.99551153,151.79,151.75,6.5887]
[1746100542122,11.58251153,151.79,151.75,6.5887]
[1746100542418,4.44621657,151.78,151.75,6.5887]
[1746100542714,4.44621657,151.77,151.75,6.5887]
[1746100542915,4.44621657,151.76,151.75,6.5887]
[1746100544707,11.58251153,151.79,151.75,6.5887]
[1746100545521,6.5876,151.78,151.74,6.589]
[1746100545721,4.4406539,151.77,151.74,6.589]
[1746100546018,4.4406539,151.76,151.73,4.99551153]
[1746100546213,4.4406539,151.75,151.74,6.5892]
[1746100547921,11.58261153,151.79,151.75,6.5886]
[1746100548721,6.5875,151.78,151.75,6.5886]
[1746100548921,4.43719862,151.77,151.75,6.5886]
[1746100549222,4.43719862,151.76,151.75,6.5886]
[1746100550722,4.4356711,151.76,151.75,6.5886]
[1746100554224,11.58271153,151.79,151.75,6.5886]
[1746100554525,6.5875,151.78,151.75,6.5886]
[1746100555520,4.43381147,151.77,151.75,6.5886]
[1746100555818,4.43381147,151.76,151.75,6.5886]
[1746100556626,4.43381147,151.76,151.69,23.5]
[1746100556825,9.429323,151.75,151.69,28.49551153]
[1746100557026,4.43381147,151.74,151.69,28.49551153]
[1746100557229,3.927,151.77,151.72,6.5898]
[1746100557230,4.43381147,151.73,151.72,6.5898]
[1746100557529,3.927,151.77,151.72,4.99551153]
[1746100557726,6.5884,151.76,151.73,6.5896]
[1746100558225,4.42994854,151.75,151.72,11.58511153]
[1746100558427,4.42994854,151.74,151.72,4.99551153]
[1746100558627,4.42994854,151.73,151.72,4.99551153]
[1746100558928,10.5151,151.77,151.73,6.5895]
[1746100559129,4.42804955,151.76,151.73,6.5895]
[1746100559326,4.42804955,151.75,151.73,6.5895]
[1746100559526,4.42804955,151.74,151.73,6.5895]
[1746100560922,4.42669742,151.74,151.73,6.5895]
[1746100561329,4.99551153,151.79,151.72,4.99551153]
[1746100561529,4.42715397,151.78,151.73,23.5]
[1746100561723,4.42715397,151.77,151.73,23.5]
[1746100562030,4.42715397,151.76,151.73,23.5]
[1746100562231,11.58261153,151.79,151.73,23.5]
[1746100562430,4.42753716,151.78,151.73,23.5]
[1746100562730,4.42783418,151.77,151.73,23.5]
[1746100562933,4.42783418,151.76,151.73,23.5]
[1746100563225,6.5875,151.78,151.73,23.5]
[1746100563431,4.99551153,151.79,151.73,23.5]
[1746100563633,6.588,151.77,151.74,6.5892]
[1746100564133,4.42807225,151.76,151.74,6.5892]
[1746100564435,6.5877,151.78,151.73,30.0896]
[1746100564624,4.42828692,151.77,151.73,30.0896]
[1746100564825,4.42828692,151.76,151.74,6.5891]
[1746100565020,4.42769196,151.75,151.73,23.5]
[1746100565226,6.5883,151.76,151.73,23.5]
[1746100565421,4.42746677,151.75,151.73,23.5]
[1746100565632,6.5883,151.76,151.73,30.0894]
[1746100565834,4.42752642,151.75,151.73,30.0894]
[1746100566035,11.58361153,151.77,151.73,30.0894]
[1746100566336,4.42755617,151.76,151.73,30.0894]
[1746100566523,4.42755617,151.75,151.73,30.0894]
[1746100566727,11.58361153,151.77,151.73,30.0894]
[1746100566929,4.42779505,151.76,151.73,30.0894]
[1746100567228,11.58361153,151.77,151.74,6.5892]
[1746100567229,4.42779505,151.75,151.74,6.5892]
[1746100569736,4.42779505,151.75,151.73,28.49551153]
[1746100569737,11.58271153,151.79,151.75,6.5885]
[1746100570036,4.43135933,151.78,151.75,6.5885]
[1746100570231,4.43135933,151.77,151.75,6.5885]
[1746100570428,4.43135933,151.76,151.75,11.58401153]
[1746100570634,23.5,151.83,151.75,4.99551153]
[1746100570834,4.99551153,151.85,151.79,4.99551153]
[1746100571033,6.5846,151.85,151.79,4.99551153]
[1746100571237,6.5846,151.85,151.81,6.5861]
[1746100571938,35.07961153,151.86,151.82,6.5856]
[1746100572445,4.43613258,151.85,151.82,6.5856]
[1746100572740,4.43613258,151.84,151.82,6.5856]
[1746100572944,4.43613258,151.83,151.82,6.5856]
[1746100573243,4.43613258,151.83,151.81,11.58141153]
[1746100573442,4.43613258,151.82,151.81,11.58141153]
[1746100573643,4.43613258,151.82,151.81,6.5859]
[1746100574431,4.43615316,151.82,151.81,6.5859]
[1746100574636,4.43615316,151.82,151.78,23.5]
[1746100574837,4.43615316,151.81,151.78,23.5]
[1746100575043,5.7543,151.87,151.78,23.5]
[1746100575044,3.8165,151.87,151.78,23.5]
[1746100575239,3.8165,151.87,151.78,25.4945]
[1746100575845,4.43799115,151.86,151.78,25.4945]
[1746100576046,4.43791599,151.85,151.83,6.585]
[1746100576344,4.43791599,151.84,151.83,6.585]
[1746100579446,4.1464,151.91,151.82,23.5]
[1746100579648,4.43813369,151.9,151.82,23.5]
[1746100579950,4.43813369,151.89,151.82,23.5]
[1746100580143,4.43813369,151.88,151.85,6.5841]
[1746100580338,4.43813369,151.87,151.85,6.5841]
[1746100580544,4.43813369,151.86,151.85,6.5841]
[1746100583051,4.43470988,151.86,151.85,6.5841]
[1746100585754,6.5829,151.89,151.85,6.5841]
[1746100585950,4.43040861,151.88,151.85,6.5841]
[1746100586152,4.43040861,151.87,151.85,6.5841]
[1746100586353,6.5829,151.89,151.85,6.5841]
[1746100586553,4.42908991,151.88,151.86,6.5839]
[1746100586753,4.42908991,151.87,151.86,6.5839]
[1746100588363,4.42792808,151.87,151.86,6.5839]
[1746100590167,4.42792808,151.87,151.85,6.5842]
[1746100590366,6.5827,151.89,151.85,6.5842]
[1746100590667,4.42621125,151.88,151.82,23.5]
[1746100590967,4.42621125,151.87,151.85,6.5841]
[1746100591161,6.5827,151.89,151.85,6.5841]
[1746100591363,4.42577272,151.88,151.85,6.5841]
[1746100591564,4.42577272,151.87,151.85,6.5841]
[1746100591769,4.1464,151.91,151.86,6.584]
[1746100591962,4.42562035,151.9,151.86,6.584]
[1746100592165,4.42562035,151.89,151.86,6.584]
[1746100592365,4.42562035,151.88,151.86,6.584]
[1746100592564,4.42562035,151.87,151.86,6.584]
[1746100593970,4.42562035,151.87,151.84,6.5846]
[1746100594175,6.5833,151.88,151.82,23.5]
[1746100594470,4.42500298,151.87,151.82,23.5]
[1746100594771,6.5833,151.88,151.82,23.5]
[1746100595070,4.42483931,151.87,151.82,23.5]
[1746100595271,6.5833,151.88,151.82,23.5]
[1746100595473,4.42476053,151.87,151.82,28.49456949]
[1746100595665,6.5833,151.88,151.82,28.49456949]
[1746100595966,9.41942213,151.87,151.82,23.5]
[1746100596173,4.42485264,151.86,151.82,23.5]
[1746100596470,4.42485264,151.85,151.82,23.5]
[1746100596672,6.5842,151.86,151.82,30.0855]
[1746100596873,4.42370924,151.85,151.82,30.0855]
[1746100597067,6.5842,151.86,151.82,30.0855]
[1746100597368,4.42338909,151.85,151.82,30.0855]
[1746100597565,4.42338909,151.84,151.82,23.5]
[1746100598670,6.5844,151.85,151.82,23.5]
[1746100598870,4.4239501,151.84,151.82,23.5]
[1746100599070,6.5844,151.85,151.82,23.5]
[1746100599258,4.42392578,151.84,151.82,23.5]
[1746100599463,6.5844,151.85,151.82,23.5]
[1746100599658,4.42442752,151.84,151.82,23.5]
[1746100599866,6.5844,151.85,151.82,23.5]
[1746100600068,4.42449781,151.84,151.82,23.5]
[1746100600266,6.5844,151.85,151.82,30.0855]
[1746100600572,4.42538165,151.84,151.82,30.0855]
[1746100600773,6.5844,151.85,151.82,30.0855]
[1746100601269,4.42554734,151.84,151.82,30.0855]
[1746100601469,6.5844,151.85,151.82,30.0855]
[1746100601671,4.42602474,151.84,151.82,30.0855]
[1746100601867,6.5844,151.85,151.82,30.0855]
[1746100602073,4.42579894,151.84,151.82,30.0855]
[1746100602274,6.5844,151.85,151.82,30.0855]
[1746100602466,4.42717634,151.84,151.82,30.0855]
[1746100602666,6.5844,151.85,151.82,30.0855]
[1746100602869,4.42776162,151.84,151.82,30.0855]
[1746100603172,6.5844,151.85,151.82,30.0855]
[1746100603372,4.42776162,151.84,151.82,30.0855]
[1746100603573,6.5844,151.85,151.82,30.0855]